Workbook

Sheet Conversion
A1: Iowa NAD 83 Coordinate Conversions
A2: Version 0.5 - 1/07/26
C3: Select units
C4: from list | F4: This workbook DOES NOT not convert coordinates between datum realizations
B5: Units | C5: Survey Ft | D5: Enter values to convert in the colored cells
D7: Lat (DD.MMSSss) | E7: Long (DD.MMSSss) | F7: ="North ("&C5&")" -> North (Survey Ft) | G7: ="East ("&C5&")" -> East (Survey Ft) | H7: Convergence | I7: Grid Scale
B8: State Plane | C8: North | D8: 43.19435 | E8: 90.2737 | F8: =SPC!C9 -> 3961840.207 | G8: =SPC!C10 -> 5729930.081 | H8: =SPC!C11 -> +2°03'36.559" | I8: =SPC!C12 -> 1.000011935
D9: =SPC!F9 -> +33°01'25.951412" | E9: =SPC!F10 -> +101°37'40.658373" | F9: 300000 | G9: 2400000 | H9: =SPC!F11 -> -5°30'31.252" | I9: =SPC!F12 -> 1.013543101
B11: UTM | C11: 14N | D11: 43.18201692 | E11: 95.46445752 | F11: =UTM!C9 -> 15747316.01 | G11: =UTM!C10 -> 2497494.688 | H11: =UTM!C11 -> +2°12'37.666" | I11: =UTM!C12 -> 1.000439582
D12: =UTM!F9 -> +43°18'20.169230" | E12: =UTM!F10 -> +95°46'44.575240" | F12: 15747316.01 | G12: 2497494.688 | H12: =UTM!F11 -> +2°12'37.666" | I12: =UTM!F12 -> 1.000439581
B14: Conic | C14: Spencer | D14: 43.18201692 | E14: 95.46445752 | F14: =Conic!C9 -> 9638938.512 | G14: =Conic!C10 -> 11359164.49 | H14: =Conic!C11 -> -0°21'43.771" | I14: =Conic!C37 -> 1.000053694
B15: See Map | D15: =Conic!F9 -> +43°18'20.169230" | E15: =Conic!F10 -> +95°46'44.575240" | F15: 9638938.512 | G15: 11359164.49 | H15: =Conic!F11 -> -0°21'43.771" | I15: =Conic!G46 -> 1.000053694
B17: Cylindric | C17: Council Bluffs | D17: 41.13263836 | E17: 95.51115934 | F17: =Cylindric!C9 -> 6954894.98 | G17: =Cylindric!C10 -> 16467018.16 | H17: =Cylindric!C11 -> -0°04'44.422" | I17: =Cylindric!C12 -> 1.000040243
B18: See Map | D18: =Cylindric!F9 -> +41°13'26.383620" | E18: =Cylindric!F10 -> +95°51'11.593360" | F18: 6954894.98 | G18: 16467018.16 | H18: =Cylindric!F11 -> -0°04'44.422" | I18: =Cylindric!F12 -> 1.000040243

Sheet SPC (hidden)
A1: SPC - Lambert Conic
B3: Units | C3: =Conversion!C5 -> Survey Ft | E3: =VLOOKUP($C$3,Units,3,FALSE) -> to get survey feet
B4: Zone | C4: =Conversion!C8 -> North | E4: =HLOOKUP($C$4,ZoneInfo,2,FALSE)&" Zone" -> North Zone
B6: Direct Conversion | E6: Inverse Conversion
B7: Lat (f) | C7: =Conversion!D8 -> 43.19435 | D7: d.ms | E7: N | F7: =Conversion!F9 -> 300000 | G7: =E3 -> to get survey feet
B8: Long (l) | C8: =Conversion!E8 -> 90.2737 | D8: d.ms | E8: E | F8: =Conversion!G9 -> 2400000 | G8: =E3 -> to get survey feet
B9: N | C9: =C41 -> 3961840.207 | D9: =E3 -> to get survey feet | E9: Lat (f) | F9: =H43 -> +33°01'25.951412"
B10: E | C10: =C42 -> 5729930.081 | D10: =E3 -> to get survey feet | E10: Long (l) | F10: =H42 -> +101°37'40.658373"
B11: g | C11: =C39 -> +2°03'36.559" | E11: g | F11: =H44 -> -5°30'31.252"
B12: k | C12: =C40 -> 1.000011935 | E12: k | F12: =H45 -> 1.013543101
A14: Zone Parameters | K14: Wis SPC Parameters
B15: Code | C15: =HLOOKUP($C$4,ZoneInfo,3,FALSE) -> 1401 | L15: Zone | M15: North | N15: South
A16: fs | B16: Std Par S | C16: =HLOOKUP($C$4,ZoneInfo,4,FALSE) -> 42.04 | D16: =RADIANS(DMStoDD(C16)) -> 0.7342018387 | E16: radians | G16: Ellipsoid | L16: Name | M16: North | N16: South
A17: fn | B17: Std Par N | C17: =HLOOKUP($C$4,[0]!ZoneInfo,5,FALSE) -> 43.16 | D17: =RADIANS(DMStoDD(C17)) -> 0.7551457897 | E17: radians | G17: a | H17: ='GRS80_&_Units'!C4*VLOOKUP($C$3,Units,2,FALSE) -> 20925604.47 | I17: =$E$3 -> to get survey feet | L17: Code | M17: 1401 | N17: 1402
A18: lo | B18: Origin Long | C18: =HLOOKUP($C$4,ZoneInfo,6,FALSE) -> 93.3 | D18: =RADIANS(DMStoDD(C18)) -> 1.631882851 | E18: radians | G18: b | H18: ='GRS80_&_Units'!C5*VLOOKUP($C$3,Units,2,FALSE) -> 20855444.88 | I18: =$E$3 -> to get survey feet | K18: fs | L18: Std Par S | M18: 42.04 | N18: 40.37 | O18: d.ms
A19: fb | B19: Origin Lat | C19: =HLOOKUP($C$4,ZoneInfo,7,FALSE) -> 41.3 | D19: =RADIANS(DMStoDD(C19)) -> 0.7243116396 | E19: radians | G19: f | H19: ='GRS80_&_Units'!C6 -> 0.003352810681 | K19: fn | L19: Std Par N | M19: 43.16 | N19: 41.47 | O19: d.ms
A20: Nb | B20: Origin N | C20: =HLOOKUP($C$4,ZoneInfo,8,FALSE) -> 1000000 | D20: =C20*VLOOKUP($C$3,Units,2,FALSE) -> 3280833.333 | E20: =$E$3 -> to get survey feet | G20: e | H20: =SQRT('GRS80_&_Units'!C7) -> 0.08181919104 | K20: lo | L20: Origin Long | M20: 93.3 | N20: 93.3 | O20: d.ms
A21: Eo | B21: Origin E | C21: =HLOOKUP($C$4,ZoneInfo,9,FALSE) -> 1500000 | D21: =C21*VLOOKUP($C$3,Units,2,FALSE) -> 4921250 | E21: =$E$3 -> to get survey feet | G21: e' | H21: =SQRT('GRS80_&_Units'!C8) -> 0.08209443815 | K21: fb | L21: Origin Lat | M21: 41.3 | N21: 40 | O21: d.ms
K22: Nb | L22: Origin N | M22: 1000000 | N22: 0 | O22: meters
A23: Zone Constants | K23: Eo | L23: Origin E | M23: 1500000 | N23: 500000 | O23: meters
C24: Q | D24: W | G24: fo | H24: =ASIN((LN(D26*COS(D16)/(D25*COS(D17))))/(C26-C25)) -> 0.744690906 | I24: radians
B25: South (Qs) | C25: =Q(H20,D16) -> 0.8062440642 | D25: =W(H20,D16) -> 0.998496339 | H25: =FormatAngle(DDtoDMS(DEGREES(H24)),3) -> +42°40'03.525" | I25: Central Latitude
B26: North (Qn) | C26: =Q(H20,D17) -> 0.8346252546 | D26: =W(H20,D17) -> 0.9984263655 | G26: K | H26: =(H17*COS(D16)*EXP(C25*SIN(H24)))/(D25*SIN(H24)) -> 39645498.46 | I26: =$E$3 -> to get survey feet
B27: Grid Origin (Qb) | C27: =Q(H20,D19) -> 0.7930299312 | G27: Rb | H27: =H26/(EXP(C27*SIN(H24))) -> 23161830.4 | I27: =$E$3 -> to get survey feet
B28: Central (Qo) | C28: =Q(H20,H24) -> 0.8203888356 | D28: =W(H20,H24) -> 0.9984613257 | G28: Ro | H28: =H26/(EXP(C28*SIN(H24))) -> 22736312.9 | I28: =$E$3 -> to get survey feet
G29: ko | H29: =(D28*TAN(H24)*H28)/(H17) -> 0.9999453679
G30: No | H30: =H27+D20-H28 -> 3706350.832 | I30: =$E$3 -> to get survey feet
A33: Direct Conversion | C33: d.ms | F33: Inverse Conversion
B34: Lat (f) | C34: =C7 -> 43.19435 | D34: =RADIANS(DMStoDD(C34)) -> 0.7562293483 | E34: radians | G34: N | H34: =F7 -> 300000 | I34: =$E$3 -> to get survey feet
B35: Long (l) | C35: =C8 -> 90.2737 | D35: =RADIANS(DMStoDD(C35)) -> 1.578829689 | E35: radians | G35: E | H35: =F8 -> 2400000 | I35: =$E$3 -> to get survey feet
B36: Q | C36: =Q(H20,D34) -> 0.8361087721 | G36: R' | H36: =H27-H34+D20 -> 26142663.74 | I36: =$E$3 -> to get survey feet
B37: R | C37: =H26/(EXP(C36*SIN(H24))) -> 22495363.74 | G37: E' | H37: =H35-D21 -> -2521250 | I37: =$E$3 -> to get survey feet
B38: g | C38: =(D18-D35)*SIN(H24) -> 0.0359564917 | D38: radians | G38: g | H38: =ATAN(H37/H36) -> -0.09614462396 | I38: radians
B39: g | C39: =FormatAngle(DDtoDMS(DEGREES(C38)),3) -> +2°03'36.559" | G39: R | H39: =SQRT(H36^2+H37^2) -> 26263959.5
B40: k | C40: =SQRT((1-H20^2*SIN(D34)^2))*(C37*SIN(H24))/(H17*COS(D34)) -> 1.000011935 | G40: Q | H40: =(LN(H26/H39))/(SIN(H24)) -> 0.6075736961
B41: N | C41: =H27+D20-C37*COS(C38) -> 3961840.207 | D41: =$E$3 -> to get survey feet | G41: Long | H41: =D18-(H38/SIN(H24)) -> 1.773742526 | I41: radians
B42: E | C42: =D21+C37*SIN(C38) -> 5729930.081 | D42: =$E$3 -> to get survey feet | G42: Long (l) | H42: =FormatAngle(DDtoDMS(DEGREES(H41)),6) -> +101°37'40.658373"
G43: Lat (f) | H43: =H58 -> +33°01'25.951412"
G44: g | H44: =FormatAngle(DDtoDMS(DEGREES(H38)),3) -> -5°30'31.252"
G45: k | H45: =SQRT(1-H20^2*SIN(I52)^2)*(H39*SIN(H24)/(H17*COS(I52))) -> 1.013543101
G47: Latitude comps - iterative
H48: f | I48: f (radians) | K48: f1 | L48: f2 | M48: (-f1/f2)
G49: initial | H49: =(EXP(2*H40)-1)/(EXP(2*H40)+1) -> 0.5424169067 | I49: =ASIN(H49) -> 0.5733113414 | K49: =Q($H$20,I49)-$H$40 -> -0.003633531686 | L49: =1/(1-H49^2)-$H$20^2/(1-$H$20^2*H49^2) -> 1.410156694 | M49: =-K49/L49 -> 0.002576686479
G50: 1 | H50: =H49+M49 -> 0.5449935932 | I50: =ASIN(H50) -> 0.5763814734 | K50: =Q($H$20,I50)-$H$40 -> 7.260076257e-06 | L50: =1/(1-H50^2)-$H$20^2/(1-$H$20^2*H50^2) -> 1.415803846 | M50: =-K50/L50 -> -5.127882848e-06
G51: 2 | H51: =H50+M50 -> 0.5449884653 | I51: =ASIN(H51) -> 0.5763753574 | K51: =Q($H$20,I51)-$H$40 -> 2.899769314e-11 | L51: =1/(1-H51^2)-$H$20^2/(1-$H$20^2*H51^2) -> 1.415792536 | M51: =-K51/L51 -> -2.048159769e-11
G52: 3 | H52: =H51+M51 -> 0.5449884653 | I52: =ASIN(H52) -> 0.5763753574
H54: f (D-M-S)
G55: initial | H55: =FormatAngle(DDtoDMS(DEGREES(I49)),6) -> +32°50'53.952760"
G56: 1 | H56: =FormatAngle(DDtoDMS(DEGREES(I50)),6) -> +33°01'27.212926"
G57: 2 | H57: =FormatAngle(DDtoDMS(DEGREES(I51)),6) -> +33°01'25.951417"
G58: 3 | H58: =FormatAngle(DDtoDMS(DEGREES(I52)),6) -> +33°01'25.951412" | I58: final Lat

Sheet UTM (hidden)
A1: Transverse Mercator Cylindric
B3: Units | C3: =Conversion!C5 -> Survey Ft | D3: M, F, S | E3: =VLOOKUP($C$3,Units,3,FALSE) -> to get survey feet
B4: Zone | C4: =Conversion!C11 -> 14N | D4: 14, 15 | E4: =HLOOKUP($C$4,TMZoneInfo,2,FALSE)&" Zone" -> 14N Zone
B6: Direct Conversion | E6: Inverse Conversion
B7: Lat (f) | C7: =Conversion!D11 -> 43.18201692 | D7: d.ms | E7: N | F7: =Conversion!F12 -> 15747316.01 | G7: =E3 -> to get survey feet
B8: Long (l) | C8: =Conversion!E11 -> 95.46445752 | D8: d.ms | E8: E | F8: =Conversion!G12 -> 2497494.688 | G8: =E3 -> to get survey feet
B9: N | C9: =C54 -> 15747316.01 | D9: =E3 -> to get survey feet | E9: Lat (f) | F9: =H56 -> +43°18'20.169230"
B10: E | C10: =C55 -> 2497494.688 | D10: =E3 -> to get survey feet | E10: Long (l) | F10: =H57 -> +95°46'44.575240"
B11: g | C11: =C63 -> +2°12'37.666" | E11: g | F11: =H65 -> +2°12'37.666"
B12: k | C12: =C64 -> 1.000439582 | E12: k | F12: =H66 -> 1.000439581
A14: Zone Parameters | K14: UTM Parameters
B15: Code | C15: =HLOOKUP($C$4,TMZoneInfo,1,FALSE) -> 14N | L15: Code | M15: 15N | N15: 14N
B16: Name | C16: =HLOOKUP($C$4,TMZoneInfo,2,FALSE) -> 14N | G16: Ellipsoid | L16: Name | M16: 15N | N16: 14N
A17: lo | B17: Cen Mer | C17: =HLOOKUP($C$4,TMZoneInfo,3,FALSE) -> 99 | D17: =RADIANS(DMStoDD(C17)) -> 1.727875959 | E17: radians | G17: a | H17: ='GRS80_&_Units'!C4*VLOOKUP($C$3,Units,2,FALSE) -> 20925604.47 | I17: =$E$3 -> to get survey feet | K17: lo | L17: Cen Mer | M17: 93 | N17: 99 | O17: d.ms
A18: ko | B18: Scale- 1: | C18: =HLOOKUP($C$4,TMZoneInfo,4,FALSE) -> 2500 | D18: =1-1/C18 -> 0.9996 | G18: b | H18: ='GRS80_&_Units'!C5*VLOOKUP($C$3,Units,2,FALSE) -> 20855444.88 | I18: =$E$3 -> to get survey feet | L18: Scale- 1: | M18: 2500 | N18: 2500
A19: lo | B19: Origin Long | C19: =HLOOKUP($C$4,TMZoneInfo,5,FALSE) -> 99 | D19: =RADIANS(DMStoDD(C19)) -> 1.727875959 | E19: radians | G19: f | H19: ='GRS80_&_Units'!C6 -> 0.003352810681 | K19: lo | L19: Origin Long | M19: 93 | N19: 99 | O19: d.ms
A20: fo | B20: Origin Lat | C20: =HLOOKUP($C$4,TMZoneInfo,6,FALSE) -> 0 | D20: =RADIANS(DMStoDD(C20)) -> 0 | E20: radians | G20: e | H20: =SQRT('GRS80_&_Units'!C7) -> 0.08181919104 | K20: fo | L20: Origin Lat | M20: 0 | N20: 0 | O20: d.ms
A21: No | B21: Origin N | C21: =HLOOKUP($C$4,TMZoneInfo,7,FALSE) -> 0 | D21: =C21*VLOOKUP($C$3,Units,2,FALSE) -> 0 | E21: =$E$3 -> to get survey feet | G21: e' | H21: =SQRT('GRS80_&_Units'!C8) -> 0.08209443815 | K21: No | L21: Origin N | M21: 0 | N21: 0 | O21: meters
A22: Eo | B22: Origin E | C22: =HLOOKUP($C$4,TMZoneInfo,8,FALSE) -> 500000 | D22: =C22*VLOOKUP($C$3,Units,2,FALSE) -> 1640416.667 | E22: =$E$3 -> to get survey feet | K22: Eo | L22: Origin E | M22: 500000 | N22: 500000 | O22: meters
A24: Zone Constants
B25: n | C25: =(H17-H18)/(H17+H18) -> 0.001679220395
B26: r | C26: =H17*(1-C25)*(1-C25^2)*(1+9*C25^2/4+225*C25^4/64) -> 20890539.41 | D26: =$E$3 -> to get survey feet
B27: u2 | C27: =-3*C25/2+9*C25^3/16 -> -0.002518827928 | E27: v2 | F27: =3*C25/2-27*C25^3/32 -> 0.002518826597
B28: u4 | C28: =15*C25^2/16-15*C25^4/32 -> 2.643541086e-06 | E28: v4 | F28: =21*C25^2/16-55*C25^4/32 -> 3.700949072e-06
B29: u6 | C29: =-35*C25^3/48 -> -3.45262895e-09 | E29: v6 | F29: =151*C25^3/96 -> 7.447813877e-09
B30: u8 | C30: =315*C25^4/512 -> 4.891830424e-12 | E30: v8 | F30: =1097*C25^4/512 -> 1.703599357e-11
B31: U0 | C31: =2*(C27-2*C28+3*C29-4*C30) -> -0.005048250776 | E31: V0 | F31: =2*(F27-2*F28+3*F29-4*F30) -> 0.005022893948
B32: U2 | C32: =8*(C28-4*C29+10*C30) -> 2.125920416e-05 | E32: V2 | F32: =8*(F28-4*F29+10*F30) -> 2.937062541e-05
B33: U4 | C33: =32*(C29-6*C30) -> -1.114233578e-07 | E33: V4 | F33: =32*(F29-6*F30) -> 2.350591333e-07
B34: U6 | C34: =128*C30 -> 6.261542943e-10 | E34: V6 | F34: =128*F30 -> 2.180607177e-09
B35: wo | C35: =D20+SIN(D20)*COS(D20)*(C31+C32*COS(D20)^2+C33*COS(D20)^4+C34*COS(D20)^6) -> 0
B36: So | C36: =D18*C35*C26 -> 0 | D36: =$E$3 -> to get survey feet
A38: Direct Conversion | C38: d.ms | F38: Inverse Conversion
B39: Lat (f) | C39: =DMStoDD(C7) -> 43.30560256 | D39: =RADIANS(C39) -> 0.7558253493 | E39: radians | G39: N | H39: =F7 -> 15747316.01 | I39: =$E$3 -> to get survey feet
B40: Long (l) | C40: =DMStoDD(C8) -> 95.77904868 | D40: =RADIANS(C40) -> 1.671659754 | E40: radians | G40: E | H40: =F8 -> 2497494.688 | I40: =$E$3 -> to get survey feet
B41: L | C41: =(D40-D17)*COS(D39) -> -0.04090885285 | G41: w | H41: =(H39-D21+C36)/(D18*C26) -> 0.7541029532
B42: w | C42: =D39+SIN(D39)*COS(D39)*(C31+C32*COS(D39)^2+C33*COS(D39)^4+C34*COS(D39)^6) -> 0.7533112412 | G42: ff | H42: =H41+(SIN(H41)*COS(H41))*(F31+F32*COS(H41)^2+F33*COS(H41)^4+F34*COS(H41)^6) -> 0.7566173023
B43: S | C43: =D18*C42*C26 -> 15730783.34 | D43: =$E$3 -> to get survey feet | G43: tf | H43: =TAN(H42) -> 0.9440335856
B44: t | C44: =TAN(D39) -> 0.9425369631 | G44: hf2 | H44: =H21^2*COS(H42)^2 -> 0.003563609812
B45: h2 | C45: =H21^2*COS(D39)^2 -> 0.003568938091 | G45: Rf | H45: =(D18*H17)/SQRT(1-H20^2*SIN(H42)^2) -> 20950305.53 | I45: =$E$3 -> to get survey feet
B46: R | C46: =(D18*H17)/SQRT(1-H20^2*SIN(D39)^2) -> 20950249.91 | D46: =$E$3 -> to get survey feet | G46: Q | H46: =(H40-D22)/H45 -> 0.04091004877
B47: A1 | C47: =-C46 -> -20950249.91 | G47: B2 | H47: =-H43/2*(1+H44) -> -0.4736988765
B48: A2 | C48: =C46*C44/2 -> 9873192.464 | G48: B3 | H48: =-(1+2*H43^2+H44)/6 -> -0.4643270719
B49: A3 | C49: =(1-C44^2+C45)/6 -> 0.01919883522 | G49: B4 | H49: =-(5+3*H43^2+H44*(1-9*H43^2)-4*H44^2)/12 -> -0.6373773385
B50: A4 | C50: =(5-C44^2+C45*(9+4*C45))/12 -> 0.3453162888 | G50: B5 | H50: =(5+28*H43^2+24*H43^4+H44*(6+8*H43^2))/120 -> 0.40885038
B51: A5 | C51: =(5-18*C44^2+C44^4+C45*(14-58*C44^2))/120 -> -0.08612901804 | G51: B6 | H51: =(61+90*H43^2+45*H43^4+H44*(46-252*H43^2-90*H43^4))/360 -> 0.4890484879
B52: A6 | C52: =(61-58*C44^2+C44^4+C45*(270-330*C44^2))/360 -> 0.02827982487 | G52: B7 | H52: =-(61+662*H43^2+1320*H43^4+720*H43^6)/5040 -> -0.4382933742
B53: A7 | C53: =(61-479*C44^2+179*C44^4-C44^6)/5040 -> -0.0444373563 | G53: L | H53: =H46*(1+H46^2*(H48+H46^2*(H50+H52*H46^2))) -> 0.04087830382
B54: N | C54: =C43-C36+D21+C48*C41^2*(1+C41^2*(C50+C52*C41^2)) -> 15747316.01 | D54: =$E$3 -> to get survey feet | G54: Lat (f) | H54: =H42+H47*H46^2*(1+H46^2*(H49+H51*H46^2)) -> 0.7558253493
B55: E | C55: =D22+C47*C41*(1+C41^2*(C49+C41^2*(C51+C53*C41^2))) -> 2497494.688 | D55: =$E$3 -> to get survey feet | G55: Long (l) | H55: =D19-(H53/COS(H42)) -> 1.671659754
G56: Lat (f) | H56: =FormatAngle(DDtoDMS(DEGREES(H54)),6) -> +43°18'20.169230"
B57: C1 | C57: =-C44 -> -0.9425369631 | G57: Long (l) | H57: =FormatAngle(DDtoDMS(DEGREES(H55)),6) -> +95°46'44.575240"
B58: C3 | C58: =(1+3*C45+2*C45^2)/3 -> 0.336910763
B59: C5 | C59: =(2-C44^2)/15 -> 0.07410827155 | G59: D1 | H59: =H43 -> 0.9440335856
B60: F2 | C60: =(1+C45)/2 -> 0.501784469 | G60: D3 | H60: =-(1+H43^2-H44-2*H44^2)/3 -> -0.6292034674
B61: F4 | C61: =(5-4*C44^2+C45*(9-24*C44^2))/12 -> 0.1168769439 | G61: D5 | H61: =(2+5*H43^2+3*H43^4)/15 -> 0.5892470815
B62: g | C62: =C57*C41*(1+C41^2*(C58+C59*C41^2)) -> 0.03857985421 | D62: radians | G62: G2 | H62: =(1+H44)/2 -> 0.5017818049
B63: g | C63: =FormatAngle(DDtoDMS(DEGREES(C62)),3) -> +2°12'37.666" | G63: G4 | H63: =(1+5*H44)/12 -> 0.08481817075
B64: k | C64: =D18*(1+C60*C41^2*(1+C61*C41^2)) -> 1.000439582 | G64: g | H64: =H59*H46*(1+H46^2*(H60+H61*H46^2)) -> 0.03857985429
G65: g | H65: =FormatAngle(DDtoDMS(DEGREES(H64)),3) -> +2°12'37.666"
G66: k | H66: =D18*(1+H62*H46^2*(1+H63*H46^2)) -> 1.000439581

Sheet Conic (hidden)
A1: IARS Single Parallel Conic Systems
B3: Units | C3: =Conversion!C5 -> Survey Ft
B4: County | C4: =Conversion!C14 -> Spencer
B6: Direct Conversion | E6: Inverse Conversion
B7: Lat (f) | C7: =Conversion!D14 -> 43.18201692 | D7: d.ms | E7: N | F7: =Conversion!F15 -> 9638938.512 | G7: =C3 -> Survey Ft
B8: Long (l) | C8: =Conversion!E14 -> 95.46445752 | D8: d.ms | E8: E | F8: =Conversion!G15 -> 11359164.49 | G8: =C3 -> Survey Ft
B9: N | C9: =C40 -> 9638938.512 | D9: =C3 -> Survey Ft | E9: Lat (f) | F9: =FormatAngle(DDtoDMS(DEGREES(G45)),6) -> +43°18'20.169230"
B10: E | C10: =C39 -> 11359164.49 | D10: =C3 -> Survey Ft | E10: Long (l) | F10: =FormatAngle(DDtoDMS(DEGREES(-G26)),6) -> +95°46'44.575240"
B11: g | C11: =C36 -> -0°21'43.771" | E11: g | F11: =FormatAngle(DDtoDMS(DEGREES(G25)),3) -> -0°21'43.771"
B12: k | C12: =C37 -> 1.000053694 | E12: k | F12: =G46 -> 1.000053694
A14: County Parameters | C14: from table | D14: for computations | F14: Zone Constants
B15: County | C15: =VLOOKUP($C$4,IARS_Cone,1,FALSE) -> Spencer | F15: vo | G15: =J17/(SQRT(1-J20^2*SIN(D17)^2)) -> 20958503.9 | L15: County Parameters - WisCRS Conic
A16: lO | B16: CM Long | C16: =VLOOKUP($C$4,IARS_Cone,2,FALSE) -> 95.15 | D16: =RADIANS(DMStoDD(C16))*(-1) -> -1.662426113 | E16: radians | F16: ro | G16: =(J17*(1-J20^2))/((1-J20^2*SIN(D17)^2)^1.5) -> 20883712.3 | I16: GRS80 Ellipsoid | M16: Long (Cen Mer) | N16: False Easting | O16: False Northing | P16: Lat (Cen Par) | Q16: Scale
A17: fO | B17: CP Lat | C17: =VLOOKUP($C$4,IARS_Cone,5,FALSE) -> 43.12 | D17: =RADIANS(DMStoDD(C17)) -> 0.7539822369 | E17: radians | F17: ro | G17: =(C20*G15)/TAN(D17) -> 22319700.35 | I17: a | J17: ='GRS80_&_Units'!C4*VLOOKUP(C3,Units,2,FALSE) -> 20925604.47 | K17: =C3 -> Survey Ft | L17: Zone | M17: (d.ms) | N17: (Meters) | O17: (Meters) | P17: (d.ms) | Q17: (Cen Par)
A18: EO | B18: False E | C18: =VLOOKUP($C$4,IARS_Cone,3,FALSE) -> 3505207.01 | D18: =C18*VLOOKUP(C3,Units,2,FALSE) -> 11500000 | E18: =C3 -> Survey Ft | F18: A0 | G18: =1-J20^2/4-3*J20^4/64-5*J20^6/256 -> 0.9983242984 | I18: b | J18: ='GRS80_&_Units'!C5*VLOOKUP(C3,Units,2,FALSE) -> 20855444.88 | K18: =C3 -> Survey Ft | L18: Spencer | M18: 95.15 | N18: =N27*12/39.37 -> 3505207.01 | O18: =O27*12/39.37 -> 2926085.852 | P18: 43.12 | Q18: 1.000052
A19: NO | B19: False N | C19: =VLOOKUP($C$4,IARS_Cone,4,FALSE) -> 2926085.852 | D19: =C19*VLOOKUP(C3,Units,2,FALSE) -> 9600000 | E19: =C3 -> Survey Ft | F19: A2 | G19: =(3/8)*(J20^2+J20^4/4+15*J20^6/128) -> 0.002514607073 | I19: f | J19: ='GRS80_&_Units'!C6 -> 0.003352810681 | L19: Mason City | M19: 92.45 | N19: =N28*12/39.37 -> 3810007.62 | O19: 2987045.974 | P19: 43.1 | Q19: 1.000043
A20: kO | B20: CP Scale | C20: =VLOOKUP($C$4,IARS_Cone,6,FALSE) -> 1.000052 | F20: A4 | G20: =(15/256)*(J20^4+3*J20^6/4) -> 2.63904662e-06 | I20: e | J20: =SQRT('GRS80_&_Units'!C7) -> 0.08181919104 | L20: Iowa | M20: 94.5 | N20: =N29*12/39.37 -> 4419608.839 | O20: 2621285.243 | P20: 42.32 | Q20: 1.000045
F21: A6 | G21: =(35/3072)*J20^6 -> 3.418046137e-09 | I21: e' | J21: =SQRT('GRS80_&_Units'!C8) -> 0.08209443815 | L21: Warerloo | M21: 92.25 | N21: =N30*12/39.37 -> 4724409.449 | O21: 2712725.425 | P21: 42.39 | Q21: 1.000032
F22: Mo | G22: =J17*(G18*D17-G19*SIN(2*D17)+G20*SIN(4*D17)-G21*SIN(6*D17)) -> 15698586.78 | L22: Cedar Rapids | M22: 91.4 | N22: =N31*12/39.37 -> 6248412.497 | O22: 2438404.877 | P22: 41.5 | Q22: 1.00002
L23: Red Oak-Ottumwa | M23: 93.45 | N23: =N32*12/39.37 -> 6858013.716 | O23: 1889763.78 | P23: 40.55 | Q23: 1.000037
A24: Direct Conversion | C24: d.ms | F24: Inverse Conversion
B25: Lat (f) | C25: =C7 -> 43.18201692 | D25: =RADIANS(DMStoDD(C25)) -> 0.7558253493 | E25: radians | F25: g | G25: =ATAN((F8-D18)/(G17-F7+D19)) -> -0.00632086245 | H25: radians | I25: =FormatAngle(DDtoDMS(DEGREES(G25)),3) -> -0°21'43.771"
B26: Long (l) | C26: =C8*-1 -> -95.46445752 | D26: =RADIANS(DMStoDD(C26)) -> -1.671659754 | E26: radians | F26: Long (l) | G26: =(G25/SIN(D17))+D16 -> -1.671659754 | H26: radians | N26: (SFeet) | O26: (SFeet)
B27: Mf | C27: =J17*(G18*D25-G19*SIN(2*D25)+G20*SIN(4*D25)-G21*SIN(6*D25)) -> 15737078.17 | F27: iterative comps for M | G27: 1 | H27: 2 | I27: 3 | L27: Spencer | N27: 11500000 | O27: 9600000
B28: M | C28: =C27-G22 -> 38491.38654 | F28: s | G28: =F7-D19-(F8-D18)*TAN(G25/2) -> 38493.40979 | L28: Mason City | N28: 12500000 | O28: 9800000
B29: M3 | C29: =C28^3/(6*G16*G15) -> 0.02171558018 | F29: Ma | G29: =G28/C20 -> 38491.40823 | H29: =G29+G37 -> 38491.38651 | I29: =H29+H37 -> 38491.38651 | L29: Iowa | N29: 14500000 | O29: 8600000
B30: M4 | C30: =(C28^4*TAN(D17)*(1-4*J21^2*COS(D17)^2))/(24*G16*G15^2) -> 9.228748545e-06 | F30: M3a | G30: =G29^3/(6*G16*G15) -> 0.0217156169 | H30: =H29^3/(6*G16*G15) -> 0.02171558013 | I30: =I29^3/(6*G16*G15) -> 0.02171558013 | L30: Warerloo | N30: 15500000 | O30: 8900000
B31: M5 | C31: =(C28^5*(5+3*TAN(D17)^2-3*J21^2-J21^2*COS(D17)^2))/(120*G16^2*G15^2) -> 2.801259212e-08 | F31: M4a | G31: =(G29^4*TAN(D17)*(1-4*J21^2*COS(D17)^2))/(24*G16*G15^2) -> 9.22876935e-06 | H31: =(H29^4*TAN(D17)*(1-4*J21^2*COS(D17)^2))/(24*G16*G15^2) -> 9.228748515e-06 | I31: =(I29^4*TAN(D17)*(1-4*J21^2*COS(D17)^2))/(24*G16*G15^2) -> 9.228748515e-06 | L31: Cedar Rapids | N31: 20500000 | O31: 8000000
B32: M6 | C32: =(C28^6*TAN(D17)*(7+4*TAN(D17)^2))/(240*G16^2*G15^3) -> 3.336472617e-11 | F32: M5a | G32: =(G29^5*(5+3*TAN(D17)^2-3*J21^2-J21^2*COS(D17)^2))/(120*G16^2*G15^2) -> 2.801267106e-08 | H32: =(H29^5*(5+3*TAN(D17)^2-3*J21^2-J21^2*COS(D17)^2))/(120*G16^2*G15^2) -> 2.801259201e-08 | I32: =(I29^5*(5+3*TAN(D17)^2-3*J21^2-J21^2*COS(D17)^2))/(120*G16^2*G15^2) -> 2.801259201e-08 | L32: Red Oak-Ottumwa | N32: 22500000 | O32: 6200000
B33: M7 | C33: =(C28^7*(60*TAN(D17)^4+180*TAN(D17)^2+61))/(5040*G16^3*G15^3) -> 7.890910265e-14 | F33: M6a | G33: =(G29^6*TAN(D17)*(7+4*TAN(D17)^2))/(240*G16^2*G15^3) -> 3.336483899e-11 | H33: =(H29^6*TAN(D17)*(7+4*TAN(D17)^2))/(240*G16^2*G15^3) -> 3.3364726e-11 | I33: =(I29^6*TAN(D17)*(7+4*TAN(D17)^2))/(240*G16^2*G15^3) -> 3.3364726e-11
B34: s | C34: =C20*(SUM(C28:C33)) -> 38493.40982 | D34: =C3 -> Survey Ft | F34: M7a | G34: =(G29^7*(60*TAN(D17)^4+180*TAN(D17)^2+61))/(5040*G16^3*G15^3) -> 7.890941395e-14 | H34: =(H29^7*(60*TAN(D17)^4+180*TAN(D17)^2+61))/(5040*G16^3*G15^3) -> 7.890910219e-14 | I34: =(I29^7*(60*TAN(D17)^4+180*TAN(D17)^2+61))/(5040*G16^3*G15^3) -> 7.890910219e-14
B35: g | C35: =(D26-D16)*SIN(D17) -> -0.00632086245 | D35: radians | F35: -Fa | G35: =(G28/C20)-SUM(G29:G34) -> -0.02172487371 | H35: =(G28/C20)-SUM(H29:H34) -> 0 | I35: =(G28/C20)-SUM(I29:I34) -> 0
C36: =FormatAngle(DDtoDMS(DEGREES(C35)),3) -> -0°21'43.771" | F36: dF/dM | G36: =1+(3*G30+4*G31+5*G32+6*G33+7*G34)/G29 -> 1.000001693 | H36: =1+(3*H30+4*H31+5*H32+6*H33+7*H34)/H29 -> 1.000001693 | I36: =1+(3*I30+4*I31+5*I32+6*I33+7*I34)/I29 -> 1.000001693
B37: k | C37: =$C$20*(1+(C28^2)/(2*$G$16*$G$15)+(C28^3*TAN($D$17))/(6*$G$16*$G$15^2)+(C28^4*(5+3*TAN($D$17)^2))/(24*$G$16^2*$G$15^2)) -> 1.000053694 | F37: dM | G37: =G35/G36 -> -0.02172483692 | H37: =H35/H36 -> 0 | I37: =I35/I36 -> 0
B38: DE | C38: =(G17-C34)*SIN(C35) -> -140835.5065 | F38: M | G38: =I29+I37 -> 38491.38651
B39: East | C39: =D18+C38 -> 11359164.49 | F39: Mf | G39: =G22+G38 -> 15737078.17
B40: North | C40: =D19+C34+C38*TAN(C35/2) -> 9638938.512 | F40: Iterative comps for latitude | G40: fa (radians) | H40: -Ga | I40: dG/df | J40: df
F41: 1 | G41: =G39/(J17*G18) -> 0.7533112412 | H41: =$G$39-$J$17*($G$18*G41-$G$19*SIN(2*G41)+$G$20*SIN(4*G41)-$G$21*SIN(6*G41)) -> 52504.22027 | I41: =$J$17*($G$18-2*$G$19*COS(2*G41)+4*$G$20*COS(4*G41)-6*$G$21*COS(6*G41)) -> 20883571.43 | J41: =H41/I41 -> 0.002514139904
F42: 2 | G42: =G41+J41 -> 0.7558253811 | H42: =$G$39-$J$17*($G$18*G42-$G$19*SIN(2*G42)+$G$20*SIN(4*G42)-$G$21*SIN(6*G42)) -> -0.6635520086 | I42: =$J$17*($G$18-2*$G$19*COS(2*G42)+4*$G$20*COS(4*G42)-6*$G$21*COS(6*G42)) -> 20884099.32 | J42: =H42/I42 -> -3.177307283e-08
F43: 3 | G43: =G42+J42 -> 0.7558253493 | H43: =$G$39-$J$17*($G$18*G43-$G$19*SIN(2*G43)+$G$20*SIN(4*G43)-$G$21*SIN(6*G43)) -> 0 | I43: =$J$17*($G$18-2*$G$19*COS(2*G43)+4*$G$20*COS(4*G43)-6*$G$21*COS(6*G43)) -> 20884099.31 | J43: =H43/I43 -> 0
F44: 4 | G44: =G43+J43 -> 0.7558253493 | H44: =$G$39-$J$17*($G$18*G44-$G$19*SIN(2*G44)+$G$20*SIN(4*G44)-$G$21*SIN(6*G44)) -> 0 | I44: =$J$17*($G$18-2*$G$19*COS(2*G44)+4*$G$20*COS(4*G44)-6*$G$21*COS(6*G44)) -> 20884099.31 | J44: =H44/I44 -> 0
F45: Lat (f) | G45: =G44+J44 -> 0.7558253493 | H45: radians | I45: =FormatAngle(DDtoDMS(DEGREES(G45)),6) -> +43°18'20.169230"
F46: k | G46: =$C$20*(1+(G38^2)/(2*$G$16*$G$15)+(G38^3*TAN($D$17))/(6*$G$16*$G$15^2)+(G38^4*(5+3*TAN($D$17)^2))/(24*$G$16^2*$G$15^2)) -> 1.000053694

Sheet Cylindric (hidden)
A1: IARS Transverse Mercator Cylindric Systems
B3: Units | C3: =Conversion!C5 -> Survey Ft
B4: County | C4: =Conversion!C17 -> Council Bluffs
B6: Direct Conversion | E6: Inverse Conversion
B7: Lat (f) | C7: =Conversion!D17 -> 41.13263836 | D7: d.ms | E7: N | F7: =Conversion!F18 -> 6954894.98 | G7: =C3 -> Survey Ft
B8: Long (l) | C8: =Conversion!E17 -> 95.51115934 | D8: d.ms | E8: E | F8: =Conversion!G18 -> 16467018.16 | G8: =C3 -> Survey Ft
B9: N | C9: =C53 -> 6954894.98 | D9: =C3 -> Survey Ft | E9: Lat (f) | F9: =H55 -> +41°13'26.383620"
B10: E | C10: =C54 -> 16467018.16 | D10: =C3 -> Survey Ft | E10: Long (l) | F10: =H56 -> +95°51'11.593360"
B11: g | C11: =C62 -> -0°04'44.422" | E11: g | F11: =H64 -> -0°04'44.422"
B12: k | C12: =C63 -> 1.000040243 | E12: k | F12: =H65 -> 1.000040243
A14: Zone Parameters | H14: GRS80 Ellipsoid
B15: County | C15: =VLOOKUP($C$4,IARS_Cyl,1,FALSE) -> Council Bluffs | H15: a | I15: ='GRS80_&_Units'!C4*VLOOKUP(C3,Units,2,FALSE) -> 20925604.47 | J15: =C3 -> Survey Ft | K15: County Parameters - WisCRS Cylindric
B16: lo | C16: =VLOOKUP($C$4,IARS_Cyl,2,FALSE) -> 95.44 | D16: =RADIANS(DMStoDD(C16)) -> 1.670861871 | E16: radians | H16: b | I16: ='GRS80_&_Units'!C5*VLOOKUP(C3,Units,2,FALSE) -> 20855444.88 | J16: =C3 -> Survey Ft | L16: Long (Cen Mer) | M16: Lat (Origin) | N16: False Easting | O16: False Northing | P16: Scale
B17: fo | C17: =VLOOKUP($C$4,IARS_Cyl,3,FALSE) -> 40.15 | D17: =RADIANS(DMStoDD(C17)) -> 0.7024950239 | E17: radians | H17: f | I17: ='GRS80_&_Units'!C6 -> 0.003352810681 | K17: Zone | L17: (d.ms) | M17: (d.ms) | N17: (meters) | O17: (meters) | P17: (Cen Mer)
B18: ko | C18: =VLOOKUP($C$4,IARS_Cyl,6,FALSE) -> 1.000039 | H18: e | I18: =Conic!J20 -> 0.08181919104 | K18: Elkader | L18: 91.12 | M18: 40.15 | N18: =N30*12/39.37 -> 4114808.23 | O18: =O30*12/39.37 -> 2529845.06 | P18: 1.000035
B19: No | C19: =VLOOKUP($C$4,IARS_Cyl,5,FALSE) -> 2011684.023 | D19: =C19*VLOOKUP(C3,Units,2,FALSE) -> 6600000 | E19: =C3 -> Survey Ft | H19: e' | I19: =SQRT('GRS80_&_Units'!C8) -> 0.08209443815 | K19: Council Bluffs | L19: 95.44 | M19: 40.15 | N19: =N31*12/39.37 -> 5029210.058 | O19: 2011684.023 | P19: 1.000039
B20: Eo | C20: =VLOOKUP($C$4,IARS_Cyl,4,FALSE) -> 5029210.058 | D20: =C20*VLOOKUP(C3,Units,2,FALSE) -> 16500000 | E20: =C3 -> Survey Ft | K20: Carrol-Atlantic | L20: 94.38 | M20: 40.15 | N20: =N32*12/39.37 -> 5334010.668 | O20: 2072644.145 | P20: 1.000045
K21: Ames-Des Moines | L21: 93.43 | M21: 40.15 | N21: =N33*12/39.37 -> 5638811.278 | O21: 2133604.267 | P21: 1.000033
K22: Newton | L22: 92.49 | M22: 40.15 | N22: =N34*12/39.37 -> 5943611.887 | O22: 2194564.389 | P22: 1.000027
A23: Zone Constants | K23: Dubuque-Davenport | L23: 90.32 | M23: 40.15 | N23: =N35*12/39.37 -> 6553213.106 | O23: 2316484.633 | P23: 1.000027
B24: n | C24: =(I15-I16)/(I15+I16) -> 0.001679220395 | K24: Fairfield | L24: 91.55 | M24: 40.15 | N24: =N36*12/39.37 -> 7162814.326 | O24: 1950723.901 | P24: 1.0002
B25: r | C25: =I15*(1-C24)*(1-C24^2)*(1+9*C24^2/4+225*C24^4/64) -> 20890539.41 | D25: =C3 -> Survey Ft | K25: Burlington | L25: 91.25 | M25: 40.15 | N25: =N37*12/39.37 -> 7467614.935 | O25: 1889763.78 | P25: 1.000018
B26: u2 | C26: =-3*C24/2+9*C24^3/16 -> -0.002518827928 | E26: v2 | F26: =3*C24/2-27*C24^3/32 -> 0.002518826597
B27: u4 | C27: =15*C24^2/16-15*C24^4/32 -> 2.643541086e-06 | E27: v4 | F27: =21*C24^2/16-55*C24^4/32 -> 3.700949072e-06
B28: u6 | C28: =-35*C24^3/48 -> -3.45262895e-09 | E28: v6 | F28: =151*C24^3/96 -> 7.447813877e-09
B29: u8 | C29: =315*C24^4/512 -> 4.891830424e-12 | E29: v8 | F29: =1097*C24^4/512 -> 1.703599357e-11 | N29: (SFeet) | O29: (SFeet)
B30: U0 | C30: =2*(C26-2*C27+3*C28-4*C29) -> -0.005048250776 | E30: V0 | F30: =2*(F26-2*F27+3*F28-4*F29) -> 0.005022893948 | K30: Elkader | N30: 13500000 | O30: 8300000
B31: U2 | C31: =8*(C27-4*C28+10*C29) -> 2.125920416e-05 | E31: V2 | F31: =8*(F27-4*F28+10*F29) -> 2.937062541e-05 | K31: Council Bluffs | N31: 16500000 | O31: 6600000
B32: U4 | C32: =32*(C28-6*C29) -> -1.114233578e-07 | E32: V4 | F32: =32*(F28-6*F29) -> 2.350591333e-07 | K32: Carrol-Atlantic | N32: 17500000 | O32: 6800000
B33: U6 | C33: =128*C29 -> 6.261542943e-10 | E33: V6 | F33: =128*F29 -> 2.180607177e-09 | K33: Ames-Des Moines | N33: 18500000 | O33: 7000000
B34: wo | C34: =D17+SIN(D17)*COS(D17)*(C30+C31*COS(D17)^2+C32*COS(D17)^4+C33*COS(D17)^6) -> 0.7000116039 | K34: Newton | N34: 19500000 | O34: 7200000
B35: So | C35: =C18*C34*C25 -> 14624190.32 | D35: =C3 -> Survey Ft | K35: Dubuque-Davenport | N35: 21500000 | O35: 7600000
K36: Fairfield | N36: 23500000 | O36: 6400000
A37: Direct Conversion | C37: d.ms | F37: Inverse Conversion | K37: Burlington | N37: 24500000 | O37: 6200000
B38: Lat (f) | C38: =C7 -> 41.13263836 | D38: =RADIANS(DMStoDD(C38)) -> 0.7194944514 | E38: radians | G38: N | H38: =F7 -> 6954894.98 | I38: =C3 -> Survey Ft
B39: Long (l) | C39: =C8 -> 95.51115934 | D39: =RADIANS(DMStoDD(C39)) -> 1.672954294 | E39: radians | G39: E | H39: =F8 -> 16467018.16 | I39: =C3 -> Survey Ft
B40: L | C40: =(D39-D16)*COS(D38) -> 0.001573793403 | G40: w | H40: =(H38-D19+C35)/(C18*C25) -> 0.7169992524
B41: w | C41: =D38+SIN(D38)*COS(D38)*(C30+C31*COS(D38)^2+C32*COS(D38)^4+C33*COS(D38)^6) -> 0.7169981639 | G41: ff | H41: =H40+(SIN(H40)*COS(H40))*(F30+F31*COS(H40)^2+F32*COS(H40)^4+F33*COS(H40)^6) -> 0.7194955406
B42: S | C42: =C18*C41*C25 -> 14979062.56 | D42: =C3 -> Survey Ft | G42: tf | H42: =TAN(H41) -> 0.8761757807
B43: t | C43: =TAN(D38) -> 0.8761738554 | G43: hf2 | H43: =I19^2*COS(H41)^2 -> 0.003812614008
B44: h2 | C44: =I19^2*COS(D38)^2 -> 0.003812621285 | G44: Rf | H44: =(C18*I15)/SQRT(1-I18^2*SIN(H41)^2) -> 20956906.64 | I44: =C3 -> Survey Ft
B45: R | C45: =(C18*I15)/SQRT(1-I18^2*SIN(D38)^2) -> 20956906.56 | D45: =C3 -> Survey Ft | G45: Q | H45: =(H39-D20)/H44 -> -0.00157379355
B46: A1 | C46: =-C45 -> -20956906.56 | G46: B2 | H46: =-H42/2*(1+H43) -> -0.4397581504
B47: A2 | C47: =C45*C43/2 -> 9180946.81 | G47: B3 | H47: =-(1+2*H42^2+H43)/6 -> -0.4231967686
B48: A3 | C48: =(1-C43^2+C44)/6 -> 0.03935533274 | G48: B4 | H48: =-(5+3*H42^2+H43*(1-9*H42^2)-4*H43^2)/12 -> -0.6067053768
B49: A4 | C49: =(5-C43^2+C44*(9+4*C44))/12 -> 0.3555575926 | G49: B5 | H49: =(5+28*H42^2+24*H42^4+H43*(6+8*H42^2))/120 -> 0.3390464336
B50: A5 | C50: =(5-18*C43^2+C43^4+C44*(14-58*C43^2))/120 -> -0.06954416488 | G50: B6 | H50: =(61+90*H42^2+45*H42^4+H43*(46-252*H42^2-90*H42^4))/360 -> 0.4329094035
B51: A6 | C51: =(61-58*C43^2+C43^4+C44*(270-330*C43^2))/360 -> 0.04757610038 | G51: B7 | H51: =-(61+662*H42^2+1320*H42^4+720*H42^6)/5040 -> -0.3319207486
B52: A7 | C52: =(61-479*C43^2+179*C43^4-C43^6)/5040 -> -0.0400160189 | G52: L | H52: =H45*(1+H45^2*(H47+H45^2*(H49+H51*H45^2))) -> -0.0015737919
B53: N | C53: =C42-C35+D19+C47*C40^2*(1+C40^2*(C49+C51*C40^2)) -> 6954894.98 | D53: =C3 -> Survey Ft | G53: Lat (f) | H53: =H41+H46*H45^2*(1+H45^2*(H48+H50*H45^2)) -> 0.7194944514
B54: E | C54: =D20+C46*C40*(1+C40^2*(C48+C40^2*(C50+C52*C40^2))) -> 16467018.16 | D54: =C3 -> Survey Ft | G54: Long (l) | H54: =D16-(H52/COS(H41)) -> 1.672954294
G55: Lat (f) | H55: =FormatAngle(DDtoDMS(DEGREES(H53)),6) -> +41°13'26.383620"
B56: C1 | C56: =-C43 -> -0.8761738554 | G56: Long (l) | H56: =FormatAngle(DDtoDMS(DEGREES(H54)),6) -> +95°51'11.593360"
B57: C3 | C57: =(1+3*C44+2*C44^2)/3 -> 0.3371556453
B58: C5 | C58: =(2-C43^2)/15 -> 0.08215462501 | G58: D1 | H58: =H42 -> 0.8761757807
B59: F2 | C59: =(1+C44)/2 -> 0.5019063106 | G59: D3 | H59: =-(1+H42^2-H43-2*H43^2)/3 -> -0.5879474376
B60: F4 | C60: =(5-4*C43^2+C44*(9-24*C43^2))/12 -> 0.15777884 | G60: D5 | H60: =(2+5*H42^2+3*H42^4)/15 -> 0.507095744
B61: g | C61: =C56*C40*(1+C40^2*(C57+C58*C40^2)) -> -0.001378917785 | D61: radians | G61: G2 | H61: =(1+H43)/2 -> 0.501906307
B62: g | C62: =FormatAngle(DDtoDMS(DEGREES(C61)),3) -> -0°04'44.422" | G62: G4 | H62: =(1+5*H43)/12 -> 0.0849219225
B63: k | C63: =C18*(1+C59*C40^2*(1+C60*C40^2)) -> 1.000040243 | G63: g | H63: =H58*H45*(1+H45^2*(H59+H60*H45^2)) -> -0.001378917784
G64: g | H64: =FormatAngle(DDtoDMS(DEGREES(H63)),3) -> -0°04'44.422"
G65: k | H65: =C18*(1+H61*H45^2*(1+H62*H45^2)) -> 1.000040243

Sheet GRS80_&_Units (hidden)
A1: Ellipsoid and Units
A3: GRS 80 Ellipsoid Parameters
B4: a | C4: 6378137 | D4: semimajor axis, meters | E4: fixed
B5: b | C5: =C4-C4*C6 -> 6356752.314 | D5: semiminor axis; meters | E5: computed
B6: f | C6: =1/298.25722210088 -> 0.003352810681 | D6: flattening | E6: fixed
B7: e2 | C7: =(C4^2-C5^2)/C4^2 -> 0.006694380023 | D7: first eccentricity squared | E7: computed
B8: e' 2 | C8: =(C4^2-C5^2)/C5^2 -> 0.006739496775 | D8: second eccentricity squared | E8: computed
A10: Unit Conversion Constants
B11: Unit | C11: Multiply units by:
B12: Meters | C12: 1 | D12: to get meters
B13: Int'l Ft | C13: =1000/(25.4*12) -> 3.280839895 | D13: to get int'l feet
B14: Survey Ft | C14: =39.37/12 -> 3.280833333 | D14: to get survey feet
B16: Note - Base units are meters.
C17: The above conversions are multipiers
